[Event "2nd Bassano Easter 2022"]
[Site "Bassano del Grappa"]
[Date "2022.04.18"]
[Round "9.1"]
[White "Gallego Alcazar, Andres Felipe"]
[Black "Bernadskiy, Vitaliy"]
[Result "0-1"]
[ECO "D30"]
[WhiteElo "2523"]
[BlackElo "2601"]
[Annotator "TA"]
[PlyCount "148"]
[EventDate "2022.04.14"]
[EventType "swiss"]
[EventCountry "ITA"]
[SourceTitle "playchess.com"]
[Source "ChessBase"]
[SourceQuality "1"]
[TimeControl "30/3600+30:1800+30"]

{[%evp 25,148,40,40,38,45,35,62,54,82,67,58,43,51,56,33,15,31,24,53,46,75,66,79,0,0,-1,-11,-28,-27,-17,-26,-14,-25,-24,0,-34,0,0,0,0,0,0,0,0,0,-76,-72,-73,0,0,0,0,0,0,0,0,0,0,0,0,0,0,0,0,0,0,0,0,0,0,0,0,0,-15,-15,-15,-15,-15,-15,-15,-15,-15,0,-8,-24,0,0,0,0,0,0,0,0,0,0,0,0,0,0,0,0,0,0,0,0,-19,-4,-29972,-29969,-29988,-29957,-29983,-29984,-29984,-29985,-29985,-29986,-29986,-29987,-29986,-29987,-29991,-29992,-29993,-29994]} 1. d4 {[%emt 0:00:03]} d5 {[%emt 0:02:27]} 2. c4 {[%emt 0:00:16]} c6 {[%emt 0:00:04]} 3. Nf3 {[%emt 0:00:09]} e6 {[%emt 0:00:04]} 4. g3 {[%emt 0:00:35]} dxc4 {[%emt 0:00:48]} 5. Bg2 {[%emt 0:00:36]} b5 {[%emt 0:00:34]} 6. Ne5 {[%emt 0:03:38]} Bb7 {[%emt 0:00:37]} 7. O-O {[%emt 0:00:44]} Ne7 {[%emt 0:05:03]} 8. b3 {[%emt 0:06:08]} cxb3 {[%emt 0:00:50]} 9. Qxb3 {[%emt 0:02:56]} Nd7 {[%emt 0:03:49]} 10. Nc3 {[%emt 0:04:32]} Nd5 {[%emt 0:03:57]} 11. Ne4 {[%emt 0:46:23]} Nxe5 {[%emt 0:05:11]} 12. dxe5 {[%emt 0:00:06]} a5 {[%emt 0:00:21]} 13. Bb2 {[%emt 0:07:15]} a4 {[%emt 0:03:59]} 14. Qc2 {[%emt 0:00:31]} a3 {[%emt 0:06:15]} 15. Bd4 {[%emt 0:00:40]} Ra4 {[%emt 0:00:03]} 16. Rfd1 {[%emt 0:05:46]} Be7 {[%emt 0:04:46]} 17. Nd6+ {[%emt 0:04:20]} Bxd6 {[%emt 0:00:36]} 18. exd6 {[%emt 0:00:06]} O-O $1 {[%emt 0:30:06]} 19. e4 {[%emt 0:00:27]} Nb6 {[%emt 0:02:50]} 20. Rac1 {[%emt 0:00:57]} Nd7 {[%emt 0:26:43]} 21. e5 {[%emt 0:01:53]} Ba8 {[%emt 0:04:36]} 22. Qe2 {[%emt 0:08:00]} (22. Bxc6 $2 Rc4 23. Qe2 Bxc6 $19) 22... Qc8 {[%emt 0:02:33]} 23. Bc5 {[%emt 0:00:38]} Qa6 {[%emt 0:00:12]} 24. Rd2 {[%emt 0:02:42]} ({White should try} 24. Qe3 $16) 24... Rb8 {[%emt 0:01:41]} 25. Qe3 {[%emt 0:02:00]} Rc4 $1 {[%emt 0:02:25]} 26. Rxc4 {[%emt 0:03:54]} bxc4 {[%emt 0:00:05]} 27. Be4 {[%emt 0:00:23]} (27. Bxa3 $2 Rb1+ 28. Bf1 c3 $19) 27... Qa5 {[%emt 0:02:24]} 28. Bd4 $1 {[%emt 0:01:46]} (28. Bxa3 $2 c3 29. Rc2 Qxa3 $19) 28... c5 {[%emt 0:00:13]} 29. Bc3 {[%emt 0:08:39]} Qb5 {[%emt 0:04:38]} 30. Rd1 {[%emt 0:00:00]} Bxe4 {[%emt 0:00:00]} (30... Qa4 $5 {[%cal Ra4d1]} 31. Rd2 Bxe4 32. Qxe4 g6 $11) 31. Qxe4 {[%emt 0:02:45]} g6 {[%emt 0:01:18]} 32. h4 {[%emt 0:01:23]} h5 {[%emt 0:00:50]} 33. Kh2 {[%emt 0:02:23]} Kg7 {[%emt 0:00:44]} 34. Rc1 {[%emt 0:01:08]} Qa6 {[%emt 0:02:24]} 35. Rd1 {[%emt 0:31:53]} (35. Qc2 $11) 35... Rb2 $1 $17 {[%emt 0:05:38]} 36. Rd2 {[%emt 0:01:26] [#]} Rxd2 {[%emt 0:05:55]} (36... Qb7 $1 $17 {[%cal Rb7e4]} 37. Qe1 Rxd2 38. Qxd2 Qf3) 37. Bxd2 $11 {[%emt 0:00:01]} Qa4 {[%emt 0:00:05]} 38. Bc3 {[%emt 0:02:59]} Nb6 {[%emt 0:03:25]} 39. Qb7 {[%emt 0:02:26]} Qc2 {[%emt 0:04:50]} 40. Be1 {[%emt 0:07:08]} ({Don't blunder} 40. Qxb6 $2 Qxf2+ 41. Kh3 Qf5+ 42. Kh2 Qc2+ 43. Kh3 Qxc3 $19) 40... Qe2 {[%emt 0:00:38]} 41. Qxb6 {[%emt 0:01:04]} Qxe1 {[%emt 0:00:06]} 42. Qxc5 {[%emt 0:00:19]} Qd2 {[%emt 0:01:25]} 43. d7 {[%emt 0:05:30]} ({Don't play} 43. Qxa3 Qxf2+ 44. Kh3 Qf1+ 45. Kh2 Qf2+ 46. Kh3 Qf1+ 47. Kh2 Qf2+ $17) 43... Qxd7 {[%emt 0:00:24]} 44. Qxc4 {[%emt 0:00:02]} Qd2 {[%emt 0:00:12]} 45. Qf4 $1 {[%emt 0:05:10]} ({Much worse is} 45. Kg2 Qb2 46. Kg1 Qxe5 $17) 45... Qd5 {[%emt 0:02:15]} 46. Qf6+ {[%emt 0:00:24]} Kg8 {[%emt 0:00:48]} 47. Qe7 {[%emt 0:03:06]} Qd2 {[%emt 0:02:05]} (47... Qxa2 $5 48. Qd8+ Kg7 49. Qf6+ Kh7 $11) 48. Qf6 $1 {[%emt 0:00:58]} Kf8 {[%emt 0:15:47]} 49. Qh8+ {[%emt 0:01:48]} Ke7 {[%emt 0:00:02]} 50. Qf6+ {[%emt 0:00:10]} Ke8 {[%emt 0:00:03]} 51. Qh8+ {[%emt 0:01:05]} Kd7 {[%emt 0:00:06]} 52. Qf6 $1 {[%emt 0:00:05]} Qxa2 {[%emt 0:00:16]} 53. Qxf7+ {[%emt 0:00:02]} Kc6 {[%emt 0:00:11]} 54. Qf3+ {[%emt 0:00:41]} Kc5 {[%emt 0:00:42]} 55. Qc3+ {[%emt 0:00:37]} Kd5 {[%emt 0:00:10]} 56. Qd3+ {[%emt 0:00:27]} Kxe5 {[%emt 0:00:37]} 57. Qe3+ {[%emt 0:01:43]} Kd6 {[%emt 0:01:42]} 58. Qf4+ {[%emt 0:01:08]} Kd7 {[%emt 0:03:16]} 59. Qf7+ {[%emt 0:00:16]} Kc6 {[%emt 0:00:18]} 60. Qf3+ {[%emt 0:00:03]} Kb5 {[%emt 0:00:30]} (60... Kc5 $5 61. Qf8+ Kd5 62. Qf3+ Kd6 63. Qf8+ Kd7 64. Qf7+ Kd6 65. Qf8+ Kd5 66. Qf3+ Kd6 67. Qf8+ $17) 61. Qd3+ {[%emt 0:00:05]} Kb4 {[%emt 0:14:02]} (61... Ka4 $5 62. Qa6+ Kb3 63. Qxe6+ Kb2 64. Qe5+ Kc2 65. Qe2+ Kb3 66. Qe6+ Kb2 67. Qe5+ Kc2 68. Qe2+ Kb3 69. Qe6+ $11) 62. Qd6+ {[%emt 0:01:28]} Kc3 {[%emt 0:14:11]} 63. Qe5+ {[%emt 0:01:00]} Kd2 {[%emt 0:00:12]} 64. Qe3+ {[%emt 0:00:37]} Kd1 {[%emt 0:00:04]} (64... Kc2 $5) 65. Qf3+ {[%emt 0:00:09]} Ke1 {[%emt 0:01:06]} 66. Qe3+ $2 {[%emt 0:00:45][%mdl 8192]} (66. Kg1 $11) 66... Kf1 {[%emt 0:01:44]} 67. Kh3 {[%emt 0:00:27]} Qb2 {[%emt 0:01:19]} 68. Qe4 {[%emt 0:00:40]} a2 {[%emt 0:01:18]} 69. Qh1+ {[%emt 0:00:03]} Ke2 {[%emt 0:11:38]} 70. Qe4+ {[%emt 0:00:02] [#]} Kd1 $1 {[%emt 0:00:25]} 71. Qd3+ {[%emt 0:00:09]} Ke1 {[%emt 0:02:16]} 72. Qe4+ {[%emt 0:01:38]} Qe2 {[%emt 0:00:06]} 73. Qb4+ {[%emt 0:00:12]} Kf1 {[%emt 0:01:25]} 74. Qc3 {[%emt 0:00:55]} Kg1 {[%emt 0:00:14]} 0-1

[Event "2nd Bassano Easter 2022"]
[Site "Bassano del Grappa"]
[Date "2022.04.18"]
[Round "9.2"]
[White "Basso, Pier Luigi"]
[Black "Baum, Jonasz"]
[Result "0-1"]
[ECO "D24"]
[WhiteElo "2600"]
[BlackElo "2287"]
[Annotator "TA"]
[PlyCount "110"]
[EventDate "2022.04.14"]
[EventType "swiss"]
[EventCountry "ITA"]
[SourceTitle "playchess.com"]
[Source "ChessBase"]
[SourceQuality "1"]
[TimeControl "30/3600+30:1800+30"]

{[%evp 10,110,13,0,0,0,5,0,36,26,25,23,137,126,140,123,157,43,50,0,0,0,0,0,0,0,0,0,0,-1,0,-40,-40,-111,-115,-108,-108,-108,-107,-123,-125,-125,-116,-120,-133,-162,-164,-159,-135,-134,-139,-139,0,-136,-129,-123,-122,-141,-132,-127,-143,-135,-108,-102,-70,-213,-217,-283,-283,-283,-283,-282,-274,-277,-276,-268,-266,-337,-337,-376,-334,-336,-360,-389,-382,-359,-352,-385,-378,-417,-403,-596,-587,-729,-726,-695,-686,-662,-575,-819,-792,-752,-752]} 1. d4 {[%emt 0:02:35]} Nf6 {[%emt 0:00:06]} 2. c4 {[%emt 0:00:29]} e6 {[%emt 0:00:05]} 3. Nf3 {[%emt 0:00:05]} d5 {[%emt 0:00:04]} 4. Nc3 {[%emt 0:00:05]} dxc4 {[%emt 0:00:20]} 5. e3 {[%emt 0:01:03]} a6 {[%emt 0:00:29]} 6. a4 {[%emt 0:00:08]} b6 {[%emt 0:00:13] D24: Queen's Gambit Accepted: 3 Nf3 Nf6 4 Nc3.} 7. Bxc4 {[%emt 0:00:07]} Bb7 {[%emt 0:00:08] Inhibits e4.} 8. O-O {[%emt 0:00:08][%cal Oe3e4]} c5 {[%emt 0:00:47] The position is equal.} 9. e4 {[%emt 0:00:25] Hoping for d5.} cxd4 {[%emt 1:02:48]} 10. Nxd4 {[%emt 0:01:53] [#]} Qc7 $146 {[%emt 0:07:48] [#]} (10... Nc6 $11 11. Nxc6 Qc7) ({Predecessor:} 10... Bc5 11. Be3 Nxe4 12. Nxe4 Bxe4 13. Qg4 Bg6 14. Nxe6 fxe6 15. Bxc5 bxc5 16. Qxe6+ Kf8 17. Rad1 Qc7 18. Rfe1 Ra7 19. Rd3 Bf7 20. Qxf7+ Qxf7 21. Rd8+ Qe8 22. Rdxe8# {1-0 (22) Lucchi,V (2135)-Andreazza,A (2055) Cesenatico 2000}) 11. Bxe6 $1 $16 {[%emt 0:04:04][%mdl 512]} fxe6 {[%emt 0:05:29]} 12. Nxe6 {[%emt 0:00:03]} Qd7 {[%emt 0:02:27] [#]} 13. Nd5 $1 {[%emt 0:06:07] &Bianco is much more active.} Bd6 $14 {[%emt 0:00:58] [#]} (13... Nxd5 $2 14. exd5 Bxd5 15. Qxd5 $3 {[%mdl 512]} Qxd5 16. Nc7+ Kf7 17. Nxd5 $18) (13... Nxe4 $2 14. Qh5+ g6 15. Ndc7+ Kf7 16. Qf3+ Nf6 17. Qxb7 $18) 14. Qb3 $1 {[%emt 0:12:12]} Bc8 $1 $11 {[%emt 0:19:15][%cal Bb7c8,Bc8e6,Be6d7][%mdl 32]} (14... Nxe4 $2 15. Re1 (15. Nxb6 Qf7 $18) 15... Bxh2+ 16. Kxh2 Bxd5 {[#]} 17. Qxd5 $3 {[%mdl 512]} Qxd5 18. Nc7+ Kf7 19. Nxd5 $18) (14... Qxe6 $2 15. Nc7+ $1 {[%mdl 512]} Bxc7 16. Qxe6+ Kf8 17. e5 Bxe5 18. Qxe5 $18) (14... Bxh2+ $2 15. Kxh2 Bxd5 16. exd5 $18) 15. Nxb6 {[%emt 0:11:17]} Qxe6 {[%emt 0:00:13]} 16. Qxe6+ {[%emt 0:00:06]} Bxe6 {[%emt 0:00:04]} 17. Nxa8 {[%emt 0:00:09]} Nbd7 {[%emt 0:01:51] ...Ke7 is the strong threat.} (17... Nxe4 18. Re1 Bd5 19. Nb6 $16) 18. a5 {[%emt 0:04:28]} O-O $36 {[%emt 0:11:08][%mdl 2048] Black fights for an advantage.} 19. Nb6 {[%emt 0:00:07]} Ng4 {[%emt 0:08:36]} 20. h3 {[%emt 0:04:22]} Nxf2 {[%emt 0:00:10] White must now prevent ...Bc5.} 21. Nxd7 {[%emt 0:00:05]} (21. Rxf2 $2 Bc5 22. Na4 Bxf2+ 23. Kh1 Bc4 $19) (21. Be3 $15 Nxe4 22. Rxf8+ Kxf8 23. b4) 21... Bxd7 $17 {[%emt 0:00:10] This bishop pair is nice.} 22. Be3 {[%emt 0:00:14] Against Bc5} (22. Rxf2 $2 Bc5 23. Ra3 Bxf2+ 24. Kh2 Bd4 $19) 22... Nxe4 {[%emt 0:00:05]} 23. Rxf8+ {[%emt 0:00:05]} Kxf8 {[%emt 0:01:22]} 24. Rd1 {[%emt 0:22:13]} Ke7 {[%emt 0:01:10]} 25. Rd4 {[%emt 0:05:11]} Bc6 {[%emt 0:00:40]} 26. Rc4 {[%emt 0:01:10]} Kd7 {[%emt 0:00:33]} 27. Bb6 {[%emt 0:17:10]} Be5 {[%emt 0:03:07]} 28. Rb4 {[%emt 0:01:25]} g6 {[%emt 0:01:19]} 29. Bd4 {[%emt 0:16:35]} Bc7 {[%emt 0:00:34]} 30. Bb6 {[%emt 0:00:00]} Be5 {[%emt 0:03:30]} 31. Bd4 $1 {[%emt 0:00:17]} Bd6 {[%emt 0:09:09]} 32. Rb6 {[%emt 0:08:43]} Nc5 {[%emt 0:02:15]} 33. Kh1 {[%emt 0:38:35]} Ne6 {[%emt 0:03:56]} 34. Bf2 {[%emt 0:31:37]} Bb5 {[%emt 0:06:30]} 35. Rb7+ {[%emt 0:01:09]} Bc7 {[%emt 0:00:10] Strongly threatening ...Nd8.} 36. Ra7 {[%emt 0:00:28]} Kc6 {[%emt 0:03:20]} 37. h4 {[%emt 0:02:01] This costs White the game.} ({Better is} 37. Bb6 $1 $15) 37... h5 $19 {[%emt 0:00:37]} (37... Bxa5 38. Rxh7 Bc7 39. Kg1 $17) 38. b4 {[%emt 0:00:09]} Bd6 {[%emt 0:01:28]} 39. Rf7 {[%emt 0:00:27]} Bd3 {[%emt 0:02:00]} ({Don't blunder} 39... Bxb4 $2 40. Rf6 Kd7 41. Rxg6 $19) 40. Be1 {[%emt 0:00:01]} Bf5 {[%emt 0:01:09]} 41. Kg1 {[%emt 0:01:48]} Nc7 {[%emt 0:00:25]} 42. Kf2 {[%emt 0:03:21]} Nd5 {[%emt 0:00:10]} 43. Kf3 {[%emt 0:02:31]} Nxb4 {[%emt 0:01:04]} 44. Bd2 {[%emt 0:02:09]} Nd5 {[%emt 0:00:14] Inhibits Bf4.} 45. g3 {[%emt 0:00:14]} Bc7 {[%emt 0:01:05]} 46. Rf8 {[%emt 0:02:50]} Kb5 {[%emt 0:00:19]} 47. Re8 {[%emt 0:00:18]} Bd7 {[%emt 0:01:42]} ({Not} 47... Bxa5 48. Bxa5 Bg4+ 49. Kf2 $11) 48. Re1 {[%emt 0:03:14]} Bg4+ {[%emt 0:00:27]} 49. Ke4 {[%emt 0:16:58]} Nb4 {[%emt 0:00:54]} ({Wrong is} 49... Nf6+ $2 50. Kd4 Bxg3 51. Rb1+ Ka4 52. Be1 Bxe1 53. Rxe1 $19) 50. Ra1 {[%emt 0:09:06]} (50. Rf1 $142) 50... Bxg3 {[%emt 0:01:27] Black is clearly winning.} 51. Bg5 {[%emt 0:00:50]} Bf5+ {[%emt 0:00:16]} 52. Kf3 {[%emt 0:00:12]} Bc7 {[%emt 0:05:53]} 53. Re1 {[%emt 0:00:42]} Nc6 {[%emt 0:00:42]} 54. Rc1 {[%emt 0:00:40]} Bxa5 {[%emt 0:00:15]} 55. Be3 {[%emt 0:00:04]} Bb4 {[%emt 0:00:14] Weighted Error Value: White=0.25 (precise) /Black=0.12 (very precise)} 0-1

[Event "2nd Bassano Easter 2022"]
[Site "Bassano del Grappa"]
[Date "2022.04.18"]
[Round "9.3"]
[White "Nesterov, Arseniy"]
[Black "Bosiocic, Marin"]
[Result "1-0"]
[ECO "A62"]
[WhiteElo "2522"]
[BlackElo "2522"]
[Annotator "TA"]
[PlyCount "97"]
[EventDate "2022.04.14"]
[EventType "swiss"]
[EventCountry "ITA"]
[SourceTitle "playchess.com"]
[Source "ChessBase"]
[SourceQuality "1"]
[TimeControl "30/3600+30:1800+30"]

{[%evp 20,97,40,41,33,38,56,62,75,54,111,112,144,141,144,143,118,145,256,239,268,272,266,254,259,233,307,339,312,330,328,302,382,237,222,226,224,235,197,50,166,166,172,171,171,149,253,253,205,164,233,156,156,123,121,107,206,210,196,213,213,213,330,330,307,303,370,360,529,547,567,564,2112,0,1047,0,29982,29983,29994,29995]} 1. d4 {[%emt 0:00:40]} Nf6 {[%emt 0:04:06]} 2. c4 {[%emt 0:00:10]} e6 {[%emt 0:00:08]} 3. Nf3 {[%emt 0:00:05]} c5 {[%emt 0:00:03]} 4. d5 {[%emt 0:00:26]} d6 {[%emt 0:00:07]} 5. Nc3 {[%emt 0:00:09]} exd5 {[%emt 0:00:09]} 6. cxd5 {[%emt 0:00:05]} g6 {[%emt 0:00:05]} 7. g3 {[%emt 0:01:00]} Bg7 {[%emt 0:00:15]} 8. Bg2 {[%emt 0:00:07]} O-O {[%emt 0:00:08]} 9. O-O {[%emt 0:00:04]} Na6 {[%emt 0:00:12]} 10. Re1 {[%emt 0:07:36]} Nc7 {[%emt 0:01:03]} 11. a4 {[%emt 0:00:33]} a6 {[%emt 0:00:38] A62: Modern Benoni: Fianchetto Variation without early ...Nbd7.} 12. h3 {[%emt 0:01:18]} Re8 {[%emt 0:11:55]} 13. e4 {[%emt 0:00:17] [#]} h6 $146 {[%emt 0:01:42] White is slightly better.} ({Predecessor:} 13... Rb8 14. Kh2 b5 15. e5 dxe5 16. d6 Ne6 17. axb5 axb5 18. Nxe5 Nd4 19. Bf4 Bb7 {½-½ (47) Dovzik,J (2425)-Boginin,O (2344) Alushta 2006}) 14. Nd2 {[%emt 0:13:48][%cal Bf3d2,Bd2c4,Bc4b6][%mdl 32]} Nd7 {[%emt 0:07:51]} (14... Rb8 $14) 15. Nc4 $16 {[%emt 0:02:08]} Ne5 {[%emt 0:01:01]} 16. Nb6 {[%emt 0:01:33]} Rb8 {[%emt 0:00:08][%cal Oc7b5]} 17. f4 {[%emt 0:00:28]} Nd7 {[%emt 0:00:44]} 18. Nc4 {[%emt 0:00:17] &Bianco is more active.} Bd4+ {[%emt 0:00:15]} (18... Nf8 $16) 19. Be3 $18 {[%emt 0:12:25]} Qf6 {[%emt 0:00:04]} 20. Bxd4 {[%emt 0:05:51]} cxd4 {[%emt 0:00:09] [#]} 21. e5 $1 {[%emt 0:02:21]} dxe5 {[%emt 0:00:05]} 22. Ne4 {[%emt 0:20:09]} Qg7 {[%emt 0:00:57]} 23. Ned6 {[%emt 0:01:10]} Rd8 {[%emt 0:03:17]} 24. Nxe5 {[%emt 0:01:55]} (24. fxe5 $6 b5 $16) 24... Nxe5 {[%emt 0:05:50]} 25. fxe5 {[%emt 0:00:09]} f6 {[%emt 0:03:05]} 26. Qxd4 {[%emt 0:04:30]} fxe5 {[%emt 0:01:03]} 27. Qb6 {[%emt 0:00:27] Rac1 is the strong threat.} Bf5 {[%emt 0:03:42]} 28. Rac1 {[%emt 0:01:16]} Rd7 {[%emt 0:00:57]} 29. Rc3 {[%emt 0:05:00]} (29. g4 $1 $18 {[%cal Rg4f5]} Bd3 30. Rc3) 29... Rf8 {[%emt 0:09:59]} ({Black should play} 29... e4 $1 $14) 30. Rec1 $1 {[%emt 0:00:00]} (30. Qxb7 Nb5 $1 31. Nxf5 gxf5 32. Qxa6 Nxc3 33. bxc3 Qxg3 34. Qe6+ Kg7 35. Qxe5+ (35. Qxd7+ $2 Rf7 $19) 35... Qxe5 36. Rxe5 Rc8 $17) 30... Na8 {[%emt 0:00:00]} 31. Qc5 {[%emt 0:05:06]} h5 {[%emt 0:22:16]} 32. Nc4 {[%emt 0:01:09]} b5 {[%emt 0:04:15]} (32... Nc7 $16 {is a better defense.} 33. d6 Ne8) 33. axb5 {[%emt 0:01:14]} axb5 {[%emt 0:00:23]} 34. Qxb5 {[%emt 0:02:59] And now d6 would win.} e4 {[%emt 0:03:30]} (34... Nc7 $142 35. Qc6 Rfd8) 35. Qc5 {[%emt 0:07:03]} Nc7 {[%emt 0:02:24]} 36. d6 {[%emt 0:05:31]} Ne6 {[%emt 0:01:33]} 37. Qe3 $36 {[%emt 0:19:08][%mdl 2048] White has strong initiative.} Nd4 {[%emt 0:02:49]} (37... Qd4 $16) 38. Rd1 {[%emt 0:08:12]} ({But not} 38. Bxe4 Re8 39. Bd5+ Kf8) 38... Nf3+ {[%emt 0:00:14]} 39. Bxf3 {[%emt 0:01:54]} exf3 {[%emt 0:00:04]} 40. Qxf3 {[%emt 0:10:23] Threatens to win with Qd5+.} Bxh3 {[%emt 0:00:05]} (40... Kh7 {might work better.}) 41. Qd5+ {[%emt 0:00:04]} Kh7 {[%emt 0:00:19] [#]} 42. Ne5 $1 {[%emt 0:08:23]} Rf5 {[%emt 0:01:54]} 43. Re1 {[%emt 0:01:34]} Rg5 {[%emt 0:08:11]} (43... Ra7 $142 44. d7 Rxe5 45. Qxe5 Rxd7) 44. Kh2 {[%emt 0:00:53]} Bg4 {[%emt 0:00:04]} 45. Rc5 {[%emt 0:00:40] Strongly threatening Qd2.} h4 {[%emt 0:01:44]} 46. Qd3 {[%emt 0:00:35]} ({White has to play} 46. Qd2 $18 hxg3+ 47. Kg1 (47. Kxg3 $2 Qh6 $19)) 46... Qh6 {[%emt 0:01:40][%mdl 8192] [#]} (46... hxg3+ $11 47. Kg1 (47. Qxg3 $2 Qh6+ 48. Kg1 Bf5 $19) 47... Qh6) 47. Kg1 $2 {[%emt 0:00:18]} (47. Nxg4 $1 $18 {Threatening mate with Rc7.} Rxg4 48. Rc7 hxg3+ 49. Kg2 Qh2+ 50. Kf3) 47... Bf5 $2 {[%emt 0:01:17][%mdl 8192] [#]} (47... hxg3 $11 48. Rc2 g2 49. Rxg2 Bh3 50. Nxd7 Rxg2+ 51. Kh1 Bf5+ 52. Kxg2 Bxd3 53. Re7+ Kh8 54. Re8+ Kh7 55. Re7+ Kh8 56. Re8+ Kh7 57. Re7+) 48. Nxd7 $1 {[%emt 0:00:24]} Qh5 {[%emt 0:01:32]} (48... Rxg3+ 49. Qxg3) 49. Nf6+ {[%emt 0:00:06] Weighted Error Value: White=0.34/Black=0.60} 1-0

[Event "2nd Bassano Easter 2022"]
[Site "Bassano del Grappa"]
[Date "2022.04.18"]
[Round "9.4"]
[White "Carlo, Emanuele"]
[Black "Fier, Alexandr"]
[Result "0-1"]
[ECO "A09"]
[WhiteElo "2296"]
[BlackElo "2583"]
[Annotator "TA"]
[PlyCount "46"]
[EventDate "2022.04.14"]
[EventType "swiss"]
[EventCountry "ITA"]
[SourceTitle "playchess.com"]
[Source "ChessBase"]
[SourceQuality "1"]
[TimeControl "30/3600+30:1800+30"]

{[%evp 9,46,27,54,53,41,50,52,44,58,31,33,13,25,8,10,0,0,0,16,-33,0,0,0,0,72,79,85,80,172,146,216,222,269,238,429,401,401,419,639]} 1. Nf3 {[%emt 1:01:00]} d5 {[%emt 0:00:35]} 2. c4 {[%emt 0:00:10]} d4 {[%emt 0:01:42]} 3. b4 {[%emt 0:00:45]} g5 {[%emt 0:00:23]} 4. e3 {[%emt 0:05:49] [#]} Bg7 $146 {[%emt 0:09:34]} ({Predecessor:} 4... e5 5. exd4 exd4 6. Qe2+ Ne7 7. Nxg5 Bg7 8. Qh5 Ng6 9. d3 Qe7+ 10. Be2 Nd7 {0-1 (19) Hillarp Persson,T (2527)-Morozevich,A (2683) St Petersburg 2016}) 5. Nxd4 {[%emt 0:03:17]} Bxd4 {[%emt 0:00:45]} 6. exd4 {[%emt 0:00:07] A09: Réti Opening: 1 Nf3 d5 2 c4.} Qxd4 {[%emt 0:00:42]} 7. Nc3 {[%emt 0:14:43]} Nc6 {[%emt 0:01:23]} 8. Be2 {[%emt 0:01:49] White is slightly better.} Nf6 {[%emt 0:06:05]} 9. O-O {[%emt 0:07:42]} (9. Bb2 {is interesting.} Bf5 10. Qb3 O-O-O 11. Nd5) 9... Bf5 {[%emt 0:03:42]} 10. Ba3 {[%emt 0:02:22]} Qd7 {[%emt 0:09:28]} 11. Na4 {[%emt 0:06:25] Black must now prevent Nc5.} b6 {[%emt 0:08:55] Inhibits Nc5.} 12. Bf3 {[%emt 0:19:29]} O-O-O {[%emt 0:04:08]} 13. Bxc6 {[%emt 0:01:36]} Qxc6 {[%emt 0:00:05]} 14. Rc1 {[%emt 0:00:17]} (14. b5 $11 {might be stronger.} Qd7 15. d4) 14... Rd3 {[%emt 0:04:46]} 15. b5 $1 {[%emt 0:00:48]} Qd7 {[%emt 0:00:26]} 16. Bb4 {[%emt 0:00:51]} Ne4 {[%emt 0:05:42]} (16... Rd4 $11 {remains equal.}) 17. Nb2 $16 {[%emt 0:00:51]} Rd4 {[%emt 0:00:26][%cal Re4d2]} 18. d3 {[%emt 0:12:55] [#] Strongly threatening Qa4.} Nf6 {[%emt 0:03:32]} (18... Nc5 $16) 19. Re1 {[%emt 0:13:08]} Re8 {[%emt 0:01:01]} (19... Nd5 $16 {was called for.} 20. Bd2 (20. cxd5 Rxb4 21. Nc4 f6 $11) 20... Nf4) 20. Bc3 $40 {[%emt 0:01:39][%mdl 128] And now Qf3 would win. White has strong attack.} Rh4 {[%emt 0:00:43]} 21. Qf3 {[%emt 0:01:08][%cal Rf3a8]} Kd8 $2 {[%emt 0:01:52] [#]} (21... Kb8 {might work better.} 22. Bxf6 exf6) 22. Qa8+ {[%emt 0:03:56]} Qc8 {[%emt 0:00:04]} 23. Qxa7 {[%emt 0:00:14]} Ng4 {[%emt 0:02:34][%mdl 32768] Weighted Error Value: White=0.15 (very precise) /Black=0.37. Loss on time!?} (23... Nd7 $142 24. a4 e5) 0-1